fUSD/lending_fUSD_20260323
["ID","MTS","AMOUNT","RATE_DAILY","PERIOD"]
[408814909,1774289442151,-511.0,0.00043333,27]
[408814910,1774289442165,-398.0,0.000435,120]
[408814911,1774289442175,-1990.0,0.00043561,120]
[408814912,1774289442184,-318.41,0.000436,30]
[408814913,1774289442194,-417.0,0.0004365,60]
[408814914,1774289442204,-1990.0,0.00043835,120]
[408814915,1774289442214,-1990.0,0.00044109,120]
[408814916,1774289442224,-191.62543744,0.00044163,7]
[408814917,1774289442234,-506.7,0.00044167,120]
[408814918,1774289442244,-14473.53,0.000442,7]
[408814919,1774289442254,-152.0,0.0004426,2]
[408814920,1774289442264,-160.0,0.000443,120]
[408814921,1774289442275,-979.16666667,0.000443,120]
[408814922,1774289442285,-1990.0,0.00044383,120]
[408814923,1774289442295,-203.65,0.000445,19]
[408814924,1774289442305,-1990.0,0.00044657,120]
[408814925,1774289442315,-2016.0,0.0004469,30]
[408814926,1774289442325,-154.58739853,0.00044811,120]
[408814927,1774289442336,-1990.0,0.00044931,120]
[408814928,1774289442347,-312.87,0.00045,30]
[408814929,1774289442357,-417.0,0.00045,60]
[408814931,1774289442372,-246.0,0.00045,90]
[408814932,1774289442381,-576.4940855,0.00045008,2]
[408814933,1774289442391,-152.0,0.00045202,2]
[408814934,1774289442401,-1990.0,0.00045205,120]
[408814935,1774289442411,-400.0,0.00045318,120]
[408814936,1774289442422,-500.0,0.00045318,120]
[408814937,1774289442433,-1990.0,0.00045479,120]
[408814938,1774289442442,-200.0,0.000455,20]
[408814939,1774289442453,-700.0,0.00045591,2]
[408814940,1774289442463,-160.0,0.000456,120]
[408814941,1774289442474,-979.16666667,0.000456,120]
[408814942,1774289442484,-246.0,0.00045685,90]
[408814943,1774289442495,-150.0,0.00045704,2]
[408814944,1774289442505,-150.0,0.00045704,2]
[408814945,1774289442516,-150.0,0.00045704,2]
[408814946,1774289442527,-186.0,0.00045704,2]
[408814947,1774289442539,-268.0,0.00045704,2]
[408814948,1774289442551,-150.0,0.00045704,2]
[408814950,1774289442562,-192.0,0.00045704,2]
[408814952,1774289442575,-1990.0,0.00045753,120]
[408814954,1774289442586,-318.41,0.000458,30]
[408814955,1774289442596,-129044.005277,0.00045927,2]
[408814957,1774289442606,-150.0,0.00045973,10]
[408814959,1774289442616,-151.0,0.00045977,120]
[408814962,1774289442627,-429760.35353296,0.0004598,60]
[408814963,1774289442639,-14473.53,0.00046,7]
[408814964,1774289442650,-77935.168583,0.00046,120]
[408814965,1774289442661,-1990.0,0.00046027,120]
[408814966,1774289442672,-385.90526278,0.00046061,120]
[408814967,1774289442683,-152.0,0.00046143,2]
[408814968,1774289442694,-1000.0,0.000463,120]
[408814969,1774289442704,-1990.0,0.00046301,120]
[408814970,1774289442715,-417.0,0.0004635,60]
[408814971,1774289442726,-1000.0,0.00046361,14]
[408814972,1774289442736,-7243.0,0.00046384,120]
[408814973,1774289442750,-1000.0,0.000464,120]
[408814974,1774289442766,-659.01483783,0.000464,23]
[408814975,1774289442777,-928.98626142,0.000464,2]
[408814976,1774289442787,-500.0,0.00046414,120]
[408814977,1774289442799,-1368.61675527,0.00046466,98]
[408814978,1774289442810,-2000000.0,0.0004648,120]
[408814979,1774289442821,-1145489.20244636,0.0004648,120]
[408814980,1774289444264,-150.0,0.00028544,2]
[408814981,1774289444275,-150.0,0.00029971,2]
[408814982,1774289444287,-150.0,0.0003147,2]
[408814983,1774289444307,-150.0,0.00033043,2]
[408814984,1774289444317,-150.0,0.00034696,2]
[408814986,1774289444327,-7213.04398427,0.00038634,2]
[408814989,1774289445757,-89.21577779,0.0003643,2]
[408814990,1774289445797,-60.78422221,0.0003643,2]
[408814991,1774289445806,-10806.5966694,0.00038634,2]
[408814992,1774289445864,-510.3325858,0.00038634,2]
[408814993,1774289445879,-28559.84839053,0.00038634,2]
[408814994,1774289445888,-7932.03535754,0.00038634,2]
[408814995,1774289445898,-490.18,0.00043,60]
[408814996,1774289445911,-9000.28,0.00043,60]
[408814997,1774289445921,-490.18,0.0004558,60]
[408814998,1774289445931,-9000.28,0.0004558,60]
[408814999,1774289445941,-333383.48270267,0.0004648,120]
[408815000,1774289445957,-349386.62738054,0.0004648,120]
[408815005,1774290631697,-474.12914604,0.00014,2]
[408815008,1774290631862,-35.87085396,0.00014,2]
[408815009,1774290631872,-340.48914604,0.00014,2]
[408815060,1774290637805,-170.51085396,0.00014,2]
[408815061,1774290637815,-437.85688074,0.00014,2]
[408815062,1774290637862,-73.14311926,0.00014,2]
[408815063,1774290637871,-749.68688074,0.00014,2]
[408815064,1774290637918,-750.31311926,0.00014,2]
[408815065,1774290637928,-195.0,0.00014,2]
[408815066,1774290637938,-300.0,0.00014001,2]
[408815067,1774290637948,-500.0,0.00014001,2]
[408815068,1774290637957,-195.0,0.00014002,2]
[408815069,1774290637967,-195.0,0.00014002,2]
[408815070,1774290637976,-200.09176232,0.00014002,2]
[408815071,1774290637985,-600.0,0.00014003,2]
[408815072,1774290637994,-300.0,0.00014004,2]
[408815073,1774290638003,-251.69511842,0.00014004,2]
[408815074,1774290638015,-48.30488158,0.00014004,2]
[408815075,1774290638025,-300.0,0.00014004,2]
[408815076,1774290638034,-347.59511842,0.00014006,2]
[408815147,1774290640263,-152.40488158,0.00014006,2]
[408815148,1774290640274,-463.59511842,0.00014006,2]
[408815149,1774290640426,-36.40488158,0.00014006,2]
[408815150,1774290640436,-500.0,0.00014006,2]
[408815151,1774290640445,-600.0,0.00014013,2]
[408815152,1774290640454,-82.76629549,0.00014013,2]
[408815153,1774290640466,-517.23370451,0.00014013,2]
[408815154,1774290640475,-600.0,0.00014013,2]
[408815156,1774290640485,-10389.93037968,0.0001439,2]
[408815157,1774290640494,-3077.9248083,0.00015,2]
[408815158,1774290640503,-255.0,0.00015057,2]
[408815159,1774290640513,-160.0,0.00015058,2]
[408815160,1774290640522,-9999.99,0.00015058,2]
[408815161,1774290640531,-600.0,0.000154,2]
[408815162,1774290640541,-500.0,0.000154,2]
[408815163,1774290640550,-300.0,0.000154,2]
[408815164,1774290640560,-2500.0,0.000154,2]
[408815165,1774290640569,-195.0,0.000154,2]
[408815166,1774290640579,-3632.77785989,0.000155,3]
[408815167,1774290640588,-4700.0,0.000156,5]
[408815168,1774290640598,-9400.0,0.000157,5]
[408815169,1774290640608,-14100.0,0.000158,5]
[408815170,1774290640617,-18800.0,0.000159,5]
[408815171,1774290640626,-34608.33940856,0.000159,2]
[408815172,1774290640635,-928.98626144,0.000159,2]
[408815173,1774290640645,-5000.0,0.000159,2]
[408815174,1774290640655,-500.0,0.00015973,2]
[408815175,1774290640664,-672.63120487,0.00015999,2]
[408815176,1774290640674,-153.23972663,0.00015999,2]
[408815177,1774290640686,-500.0,0.00015999,2]
[408815178,1774290640695,-500.0,0.00015999,2]
[408815179,1774290640705,-500.0,0.00015999,2]
[408815180,1774290640717,-574.41617893,0.00015999,2]
[408815181,1774290640726,-500.0,0.00015999,2]
[408815182,1774290640736,-500.0,0.00015999,2]
[408815183,1774290640747,-500.0,0.00015999,2]
[408815184,1774290640757,-500.0,0.00015999,2]
[408815185,1774290640767,-500.0,0.00015999,2]
[408815186,1774290640776,-500.0,0.00015999,2]
[408815187,1774290640787,-500.0,0.00015999,2]
[408815188,1774290640798,-634.85368148,0.00015999,2]
[408815189,1774290640807,-500.0,0.00015999,2]
[408815190,1774290640818,-500.0,0.00015999,2]
[408815191,1774290640828,-282.57512995,0.00015999,2]
[408815192,1774290640837,-500.0,0.00015999,2]
[408815193,1774290640846,-160.72415825,0.00015999,2]
[408815194,1774290640855,-500.0,0.00015999,2]
[408815195,1774290640864,-500.0,0.00015999,2]
[408815196,1774290640876,-2996796.38149713,0.00016,2]
[408815197,1774290640885,-1095.06,0.00016,2]
[408815198,1774290640895,-287.45,0.00016,2]
[408815199,1774290640904,-5000.00991474,0.000162,5]
[408815200,1774290640913,-5552.42475035,0.00016421,2]
[408815201,1774290640922,-1000.0,0.00016521,2]
[408815202,1774290640932,-34608.33940852,0.00017156,2]
[408815203,1774290640941,-168.0,0.00017341,2]
[408815204,1774290640950,-5552.42475027,0.00017619,2]
[408815205,1774290640959,-535.18212952,0.00018,2]
[408815206,1774290640968,-510.0,0.00018125,5]
[408815207,1774290640978,-34608.33940852,0.00018411,2]
[408815208,1774290640988,-5552.42475027,0.00018816,2]
[408815209,1774290640997,-515.0,0.00019363,5]
[408815210,1774290641006,-660.0,0.00019363,5]
[408815211,1774290641015,-14835.37,0.000196,2]
[408815212,1774290641025,-34608.33940852,0.00019667,2]
[408815213,1774290641035,-5552.42475027,0.00020014,2]
[408815214,1774290641045,-254.9,0.00020319,2]
[408815215,1774290641054,-34608.33940852,0.00020922,2]
[408815216,1774290641064,-5552.42475027,0.00021212,2]
[408815217,1774290641073,-4188.61,0.00021614,2]
[408815218,1774290641085,-34608.33940852,0.00022178,2]
[408815219,1774290641094,-510.0,0.0002225,9]
[408815220,1774290641103,-5552.42475027,0.00022409,2]
[408815221,1774290641113,-254.9,0.00022482,2]
[408815222,1774290641122,-4188.61,0.00022751,2]
[408815223,1774290641131,-287.45,0.000228,7]
[408815224,1774290641140,-34608.33940852,0.00023433,2]
[408815225,1774290641149,-5552.42475027,0.00023607,2]
[408815226,1774290641159,-4188.61,0.00023889,2]
[408815227,1774290641168,-177.7,0.00024274,2]
[408815228,1774290641178,-254.9,0.00024645,2]
[408815229,1774290641188,-150.0,0.00024658,2]
[408815230,1774290641198,-1000.0,0.00024658,2]
[408815231,1774290641207,-34608.33940852,0.00024689,2]
[408815232,1774290641216,-5552.42475027,0.00024805,2]
[408815233,1774290641226,-4188.61,0.00025026,2]
[408815234,1774290641238,-14835.37,0.000251,7]
[408815235,1774290641247,-979.16666667,0.000251,7]
[408815236,1774290641257,-220.094,0.00025189,7]
[408815237,1774290641266,-5000.0,0.00025261,2]
[408815238,1774290641277,-170.2445,0.00025664,2]
[408815239,1774290641286,-170.2445,0.00025677,2]
[408815240,1774290641295,-207.902,0.00025703,2]
[408815241,1774290641305,-150.0,0.0002589,2]
[408815242,1774290641315,-34608.33940852,0.00025944,2]
[408815243,1774290641324,-5552.42475027,0.00026002,2]
[408815244,1774290641334,-924.0,0.00026057,2]
[408815245,1774290641344,-886.762,0.00026057,2]
[408815246,1774290641353,-2466.0,0.00026057,2]
[408815247,1774290641362,-4188.61,0.00026164,2]
[408815248,1774290641372,-510.0,0.00026375,12]
[408815249,1774290641381,-279.0,0.00026705,2]
[408815250,1774290641390,-23500.0,0.000268,9]
[408815251,1774290641399,-254.9,0.00026808,2]
[408815252,1774290641408,-4700.0,0.000269,9]
[408815253,1774290641417,-800.0,0.00026986,120]
[408815254,1774290641426,-287.45,0.00027,7]
[408815255,1774290641435,-7243.0,0.00027178,2]
[408815256,1774290641445,-150.0,0.00027185,2]
[408815257,1774290641455,-5552.42475027,0.000272,2]
[408815258,1774290641464,-34608.33940852,0.000272,2]
[408815259,1774290641473,-842745.86541348,0.00027202,2]
[408815275,1774290644928,-415.0,0.00026271,2]
[408815276,1774290644938,-358639.99785529,0.00027202,2]
[408815277,1774290644969,-987.61314542,0.00027202,2]
[408815278,1774290644982,-388552.0206577,0.00027202,2]
[408815279,1774290645727,-4510.93270545,0.00027202,2]
[408815280,1774290645781,-11387.93491117,0.00027202,2]
[408815281,1774290645792,-10867.38089161,0.00027202,2]
[408815282,1774290646053,-567.96,0.00027202,2]
[408815283,1774290874013,-157.08841218,0.000271,69]
[408815284,1774290874052,-174.66698993,0.000271,69]
[408815285,1774290874091,-181.46123261,0.000271,69]
[408815286,1774290874130,-192.24556769,0.000271,69]
[408815287,1774290874172,-156.43,0.00031,30]
[408815288,1774290874213,-193.51223545,0.00033035,88]
[408815289,1774290874251,-200.33,0.000338,30]
[408815290,1774290874288,-2000.0,0.00033866,120]
[408815291,1774290874333,-156.43,0.000342,30]
[408815292,1774290874372,-166.66,0.00036402,30]
[408815293,1774290874408,-200.33,0.000369,30]
[408815294,1774290874444,-166.66,0.00037169,30]
[408815295,1774290874477,-156.43,0.000376,30]
[408815296,1774290874510,-232.91161484,0.00037835,90]
[408815297,1774290874543,-166.66,0.00037935,30]
[408815298,1774290874577,-166.66,0.00038701,30]
[408815299,1774290874610,-300.0,0.00038833,120]
[408815300,1774290874646,-205.54830014,0.0003887,108]
[408815301,1774290874681,-166.66,0.00039468,30]
[408815302,1774290874718,-170.76370563,0.00039714,111]
[408815303,1774290874754,-295.99296744,0.00039778,111]
[408815304,1774290874790,-150.68491215,0.00040015,111]
[408815305,1774290874824,-156.43,0.000401,30]
[408815306,1774290874860,-166.66,0.00040234,30]
[408815307,1774290874895,-417.0,0.0004095,60]
[408815308,1774290874930,-151.0,0.00041096,44]
[408815309,1774290874965,-254.9,0.00041948,30]
[408815310,1774290875001,-6539.40109199,0.00042,120]
[408815311,1774290875036,-500.0,0.00042,120]
[408815312,1774290875088,-150.0,0.00042173,120]
[408815313,1774290875126,-1368.61675527,0.00042219,73]
[408815314,1774290875164,-417.0,0.000423,60]
[408815315,1774290875201,-1000.0,0.00042412,120]
[408815316,1774290875238,-1990.0,0.00042465,120]
[408815317,1774290875281,-151.0,0.00042465,35]
[408815318,1774290875325,-151.0,0.00042465,120]
[408815319,1774290875372,-500.0,0.000425,120]
[408815320,1774290875412,-204.77757534,0.00042544,120]
[408815321,1774290875453,-200.33,0.000426,30]
[408815322,1774290875490,-156.43,0.000426,30]
[408815323,1774290875528,-1990.0,0.00042739,120]
[408815324,1774290875563,-500.0,0.00043,120]
[408815325,1774290875599,-979.16666667,0.00043,120]
[408815326,1774290875635,-1990.0,0.00043013,120]
[408815327,1774290876280,-1990.0,0.00043287,120]
[408815328,1774290876340,-398.0,0.000435,120]
[408815329,1774290876380,-1990.0,0.00043561,120]
[408815330,1774290876419,-417.0,0.0004365,60]
[408815331,1774290876456,-200.33,0.000437,30]
[408815332,1774290876499,-1990.0,0.00043835,120]
[408815333,1774290876538,-979.16666667,0.00044,120]
[408815334,1774290876582,-1990.0,0.00044109,120]
[408815335,1774290876618,-254.9,0.00044111,30]
[408815336,1774290876652,-512.85442163,0.00044148,120]
[408815337,1774290876686,-506.7,0.00044172,120]
[408815338,1774290876718,-150.0,0.00044281,120]
[408815339,1774290876751,-200.33,0.000443,30]
[408815340,1774290876784,-156.43,0.000443,30]
[408815341,1774290876821,-1990.0,0.00044383,120]
[408815342,1774290876855,-151.81202914,0.00044527,120]
[408815343,1774290876890,-1990.0,0.00044657,120]
[408815344,1774290876923,-2016.0,0.0004469,30]
[408815345,1774290876959,-209.01137971,0.00044705,120]
[408815346,1774290876993,-154.58739853,0.00044849,120]
[408815347,1774290877028,-1990.0,0.00044931,120]
[408815348,1774290877061,-839.05,0.00045,120]
[408815349,1774290877095,-417.0,0.00045,60]
[408815350,1774290877129,-200.33,0.000452,30]
[408815351,1774290877168,-1990.0,0.00045205,120]
[408815352,1774290877203,-151.0,0.00045205,120]
[408815353,1774290877239,-249.326028,0.00045205,120]
[408815354,1774290877273,-151.0,0.00045205,120]
[408815355,1774290877308,-181.320849,0.00045205,120]
[408815356,1774290877342,-151.0,0.00045205,120]
[408815357,1774290877375,-151.0,0.00045205,120]
[408815358,1774290877408,-151.0,0.00045205,120]
[408815359,1774290877443,-151.0,0.00045205,30]
[408815360,1774290877479,-151.0,0.00045205,120]
[408815361,1774290877527,-151.0,0.00045205,120]
[408815362,1774290877563,-151.0,0.00045205,120]
[408815363,1774290877596,-694.680339,0.00045205,120]
[408815364,1774290877634,-694.680339,0.00045205,120]
[408815365,1774290877671,-694.680339,0.00045205,120]
[408815366,1774290877707,-1347.202322,0.00045205,120]
[408815367,1774290877745,-694.680339,0.00045205,120]
[408815368,1774290877779,-1347.202322,0.00045205,120]
[408815369,1774290877812,-151.0,0.00045205,31]
[408815370,1774290877844,-1347.202322,0.00045205,120]
[408815371,1774290877876,-1347.202322,0.00045205,120]
[408815372,1774290877909,-151.0,0.00045205,120]
[408815373,1774290877944,-400.0,0.00045318,120]
[408815374,1774290877977,-500.0,0.00045318,120]
[408815375,1774290878012,-205.05839697,0.00045374,120]
[408815376,1774290878045,-1990.0,0.00045479,120]
[408815377,1774290878086,-156.43,0.000456,30]
[408815378,1774290878120,-151.0,0.00045684,90]
[408815379,1774290878155,-1990.0,0.00045753,120]
[408815380,1774290878188,-151.0,0.00045799,30]
[408815381,1774290878222,-151.0,0.00045997,120]
[408815382,1774290878254,-77935.168583,0.00046,120]
[408815383,1774290878288,-979.16666667,0.00046,120]
[408815384,1774290878325,-500.0,0.00046,120]
[408815385,1774290878364,-1990.0,0.00046027,120]
[408815386,1774290878400,-160.29235003,0.0004603,120]
[408815387,1774290878435,-200.0,0.00046192,120]
[408815388,1774290878475,-254.9,0.00046274,30]
[408815389,1774290878514,-1990.0,0.00046301,120]
[408815390,1774290878554,-151.0,0.00046349,60]
[408815391,1774290878589,-500.0,0.00046349,60]
[408815392,1774290878632,-417.0,0.0004635,60]
[408815393,1774290878674,-500.0,0.00046414,120]
[408815394,1774290878712,-151.0,0.00046444,120]
[408815395,1774290878750,-500.0,0.00046444,120]
[408815396,1774290878786,-151.0,0.00046465,98]
[408815397,1774290878824,-500.0,0.00046465,98]
[408815398,1774290878861,-214.153158,0.00046467,120]
[408815399,1774290878896,-151.0,0.0004647,120]
[408815400,1774290878933,-151.0,0.0004647,120]
[408815401,1774290878971,-151.0,0.0004647,30]
[408815402,1774290879009,-151.0,0.0004647,120]
[408815403,1774290879050,-151.0,0.0004647,120]
[408815404,1774290879088,-151.0,0.0004647,120]
[408815405,1774290879124,-224.640124,0.0004647,120]
[408815406,1774290879159,-164.386143,0.0004647,120]
[408815407,1774290879195,-151.0,0.0004647,120]
[408815408,1774290879235,-163.46278,0.0004647,120]
[408815409,1774290879271,-151.0,0.0004647,30]
[408815410,1774290879309,-151.0,0.0004647,120]
[408815411,1774290879343,-157.0616,0.0004647,120]
[408815412,1774290879380,-169.749337,0.0004647,120]
[408815413,1774290879416,-151.0,0.0004647,120]
[408815414,1774290879451,-151.0,0.0004647,120]
[408815415,1774290879487,-151.0,0.0004647,120]
[408815416,1774290879528,-151.0,0.0004647,30]
[408815417,1774290879565,-166.007109,0.0004647,120]
[408815418,1774290879601,-151.0,0.0004647,120]
[408815419,1774290879636,-151.0,0.0004647,120]
[408815420,1774290879677,-694.680339,0.0004647,120]
[408815421,1774290879716,-694.680339,0.0004647,120]
[408815422,1774290879754,-694.680339,0.0004647,120]
[408815423,1774290879795,-1347.202322,0.0004647,120]
[408815424,1774290879836,-694.680339,0.0004647,120]
[408815425,1774290879876,-1347.202322,0.0004647,120]
[408815426,1774290879914,-151.362086,0.0004647,31]
[408815427,1774290879951,-1347.202322,0.0004647,120]
[408815428,1774290879988,-1347.202322,0.0004647,120]
[408815429,1774290880024,-287.92561,0.0004647,120]
[408815430,1774290880061,-244.220628,0.0004647,120]
[408815431,1774290880099,-244.220628,0.0004647,120]
[408815432,1774290880139,-244.220628,0.0004647,120]
[408815433,1774290880177,-244.220628,0.0004647,120]
[408815434,1774290880215,-151.0,0.0004647,120]
[408815435,1774290880255,-151.0,0.0004647,120]
[408815436,1774290880296,-151.0,0.0004647,120]
[408815437,1774290880334,-151.0,0.0004647,120]
[408815438,1774290880370,-151.0,0.00046479,120]
[408815439,1774290880405,-500.0,0.00046479,120]
[408815440,1774290880444,-171740.68747043,0.0004648,120]
[408815441,1774290880495,-2000000.0,0.0004648,120]
[408815442,1774290880537,-2000000.0,0.0004648,120]
[408815443,1774290880577,-1661487.61798589,0.0004648,120]
[408815444,1774290898537,-172.649,0.00036135,30]
[408815445,1774290898574,-172.649,0.00036147,30]
[408815446,1774290898610,-5400.16,0.00043,30]
[408815447,1774290898644,-294.11,0.00043,30]
[408815448,1774290898678,-5400.16,0.0004558,30]
[408815449,1774290898712,-294.11,0.0004558,30]
[408815450,1774290898746,-979.16666667,0.00046,120]
[408815451,1774290898780,-284.21975151,0.0004638,120]
[408815452,1774290898814,-32995.6943349,0.0004647,49]
[408815453,1774290898847,-151.0,0.0004647,120]
[408815454,1774290898882,-179.057698,0.0004647,120]
[408815455,1774290898914,-151.0,0.0004647,120]
[408815456,1774290898946,-151.0,0.0004647,120]
[408815457,1774290898978,-151.0,0.0004647,120]
[408815458,1774290899011,-151.0,0.0004647,120]
[408815459,1774290899043,-151.0,0.0004647,120]
[408815460,1774290899078,-151.0,0.0004647,120]
[408815461,1774290899115,-151.0,0.0004647,120]
[408815462,1774290899153,-338512.38201411,0.0004648,120]
[408815463,1774290899200,-2000000.0,0.0004648,120]
[408815464,1774290899242,-2000000.0,0.0004648,120]
[408815465,1774290899280,-1614107.64153481,0.0004648,120]
[408815466,1774290906927,-1990.0,0.00042465,120]
[408815467,1774290906968,-1990.0,0.00042739,120]
[408815468,1774290907006,-1990.0,0.00043013,120]
[408815469,1774290907049,-979.16666667,0.00046,30]
[408815470,1774290907090,-385892.35846519,0.0004648,120]
[408815471,1774290907130,-2000000.0,0.0004648,120]
[408815472,1774290907169,-2000000.0,0.0004648,120]
[408815473,1774290907207,-1607158.47486814,0.0004648,120]
[408815474,1774290913153,-1990.0,0.00043287,120]
[408815475,1774290913191,-1990.0,0.00043561,120]
[408815476,1774290913227,-1990.0,0.00043835,120]
[408815477,1774290913263,-1990.0,0.00044109,120]
[408815478,1774290913299,-1990.0,0.00044383,120]
[408815479,1774290913335,-1990.0,0.00044657,120]
[408815480,1774290913385,-1990.0,0.00044931,120]
[408815481,1774290913427,-1990.0,0.00045205,120]
[408815482,1774290913463,-1990.0,0.00045479,120]
[408815483,1774290913499,-1990.0,0.00045753,120]
[408815484,1774290913537,-821.47543275,0.00046027,120]
[408815485,1774290913575,-341255.52513186,0.0004648,120]
[408815486,1774290913611,-2000000.0,0.0004648,120]
[408815487,1774290913646,-2000000.0,0.0004648,120]
[408815488,1774290913681,-1638022.99943539,0.0004648,120]
[408815489,1774290985402,-154.68757515,0.00034871,30]
[408815490,1774290985443,-154.68757515,0.00034914,30]
[408815491,1774290985488,-500.0,0.00045318,120]
[408815492,1774290985527,-158451.27633278,0.000456,30]
[408815493,1774290985565,-979.16666667,0.00046,30]
[408815494,1774290985605,-500.0,0.00046414,120]
[408815495,1774290985643,-151.0,0.0004647,120]
[408815496,1774290985686,-151.0,0.0004647,120]
[408815497,1774290985726,-500.0,0.00046479,120]
[408815498,1774290985764,-200.0,0.00046479,120]
[408815499,1774290985801,-500.0,0.00046479,120]
[408815500,1774290985837,-6888.0,0.00046479,120]
[408815501,1774290985873,-1030.0,0.00046479,120]
[408815502,1774290985910,-807.77223985,0.00046479,120]
[408815503,1774290985946,-151.0,0.00046479,120]
[408815504,1774290985988,-520.0,0.00046479,120]
[408815505,1774290986656,-10000.0,0.00046479,120]
[408815506,1774290986697,-518.5,0.00046479,120]
[408815507,1774290986738,-200.0,0.00046479,120]
[408815508,1774290986777,-500.0,0.00046479,120]
[408815509,1774290986818,-500.0,0.00046479,120]
[408815510,1774290986857,-7142.856,0.00046479,120]
[408815511,1774290986897,-1068.11,0.00046479,120]
[408815512,1774290986932,-156.587,0.00046479,120]
[408815513,1774290986967,-151.0,0.00046479,120]
[408815514,1774290987003,-539.24,0.00046479,120]
[408815515,1774290987040,-10370.0,0.00046479,120]
[408815516,1774290987078,-537.6845,0.00046479,120]
[408815517,1774290987118,-200.0,0.00046479,120]
[408815518,1774290987164,-500.0,0.00046479,120]
[408815519,1774290987205,-500.0,0.00046479,120]
[408815520,1774290987246,-7407.141672,0.00046479,120]
[408815521,1774290987289,-1107.63007,0.00046479,120]
[408815522,1774290987333,-162.380719,0.00046479,120]
[408815523,1774290987374,-151.0,0.00046479,120]
[408815524,1774290987413,-10753.69,0.00046479,120]
[408815525,1774290987451,-559.19188,0.00046479,120]
[408815526,1774290987490,-200.0,0.00046479,120]
[408815527,1774290987530,-557.5788265,0.00046479,120]
[408815528,1774290987570,-500.0,0.00046479,120]
[408815529,1774290987627,-1148.61238259,0.00046479,120]
[408815530,1774290987670,-500.0,0.00046479,120]
[408815531,1774290987713,-7681.20591386,0.00046479,120]
[408815532,1774290987752,-168.3888056,0.00046479,120]
[408815533,1774290987792,-151.0,0.00046479,120]
[408815534,1774290987832,-11151.57653,0.00046479,120]
[408815535,1774290987872,-579.88197956,0.00046479,120]
[408815536,1774290987911,-200.0,0.00046479,120]
[408815537,1774290987951,-599.60298507,0.00046479,120]
[408815538,1774290987990,-500.0,0.00046479,120]
[408815539,1774290988029,-500.0,0.00046479,120]
[408815540,1774290988068,-1191.11104075,0.00046479,120]
[408815541,1774290988110,-7965.41053268,0.00046479,120]
[408815542,1774290988151,-174.61919141,0.00046479,120]
[408815543,1774290988192,-151.0,0.00046479,120]
[408815544,1774290988239,-11564.18486161,0.00046479,120]
[408815545,1774290988282,-601.3376128,0.00046479,120]
[408815546,1774290988324,-297.42253113,0.00046479,120]
[408815547,1774290988369,-500.0,0.00046479,120]
[408815548,1774290988413,-500.0,0.00046479,120]
[408815549,1774290988455,-1235.18214925,0.00046479,120]
[408815550,1774290988497,-8260.13072239,0.00046479,120]
[408815551,1774290988537,-181.08010149,0.00046479,120]
[408815552,1774290988578,-500.0,0.00046479,120]
[408815553,1774290988617,-151.0,0.00046479,120]
[408815554,1774290988655,-11992.05970149,0.00046479,120]
[408815555,1774290988693,-623.58710448,0.00046479,120]
[408815556,1774290988733,-500.0,0.00046479,120]
[408815557,1774290988774,-500.0,0.00046479,120]
[408815558,1774290988816,-1280.88388878,0.00046479,120]
[408815559,1774290988863,-8565.75555911,0.00046479,120]
[408815560,1774290988903,-187.78006526,0.00046479,120]
[408815561,1774290988941,-500.0,0.00046479,120]